[Event "Fredericia IM 2019"]
[Site "Fredericia"]
[Date "2019.06.01"]
[Round "6.3"]
[White "Jacobsen, Mikkel Manosri"]
[Black "Ahlander, Bjorn"]
[Result "0-1"]
[ECO "A06"]
[WhiteElo "2319"]
[BlackElo "2421"]
[Annotator "ChessBase"]
[PlyCount "60"]
[EventDate "2019.05.29"]
[EventType "tourn"]
[EventCountry "DEN"]
[SourceTitle "playchess.com"]
[Source "ChessBase"]
[SourceQuality "1"]
[TimeControl "40/5400+30:1800+30"]

1. Nf3 {[%emt 0:00:00]} d5 {[%emt 0:00:00]} 2. b3 {[%emt 0:00:00]} c5 {[%emt 0:00:34]} 3. e3 {[%emt 0:00:00]} e6 {[%emt 0:02:21]} 4. Bb2 {[%emt 0:00:00]} Nf6 {[%emt 0:01:12]} 5. d4 {[%emt 0:02:24]} Be7 {[%emt 0:02:03]} 6. Bd3 {[%emt 0:00:15]} O-O {[%emt 0:00:57]} 7. O-O {[%emt 0:00:13]} b6 {[%emt 0:02:42]} 8. c4 {[%emt 0:01:39]} cxd4 {[%emt 0:00:57]} 9. exd4 {[%emt 0:00:06]} Bb7 {[%emt 0:00:43]} 10. Nbd2 {[%emt 0:00:05]} Nc6 {[%emt 0:00:23]} 11. Qe2 {[%emt 0:00:08]} Rc8 {[%emt 0:01:32]} 12. Rad1 {[%emt 0:00:12]} Qc7 {[%emt 0:06:01]} 13. Ne5 {[%emt 0:05:57]} dxc4 {[%emt 0:03:13]} 14. bxc4 {[%emt 0:00:16]} Nxe5 {[%emt 0:02:23]} 15. dxe5 {[%emt 0:00:09]} Nd7 {[%emt 0:00:14]} 16. f4 {[%emt 0:09:54]} Nc5 {[%emt 0:02:42]} 17. Bc2 {[%emt 0:01:27]} g6 {[%emt 0:00:52]} 18. Kh1 {[%emt 0:05:03]} Rcd8 {[%emt 0:07:14]} 19. Ba1 {[%emt 0:06:33]} Rd7 {[%emt 0:07:47]} 20. f5 {[%emt 0:10:51]} exf5 {[%emt 0:01:42]} 21. Bxf5 {[%emt 0:00:41]} gxf5 {[%emt 0:05:09]} 22. Rxf5 {[%emt 0:04:10]} Ne6 {[%emt 0:00:08]} 23. Rdf1 {[%emt 0:14:09]} Rxd2 {[%emt 0:03:34]} 24. Qxd2 {[%emt 0:00:10]} Qxc4 {[%emt 0:00:12]} 25. Qf2 {[%emt 0:05:16]} Bh4 {[%emt 0:03:38]} 26. Qb2 {[%emt 0:01:28]} Qg4 {[%emt 0:03:35]} 27. Kg1 {[%emt 0:00:50]} Be7 {[%emt 0:04:18]} 28. h3 {[%emt 0:00:49]} Qg3 {[%emt 0:01:49]} 29. Rh5 {[%emt 0:00:08]} Be4 {[%emt 0:05:38]} 30. Qe2 {[%emt 0:01:37]} Qg6 {[%emt 0:05:48]} 0-1

[Event "Fredericia IM 2019"]
[Site "Fredericia"]
[Date "2019.06.01"]
[Round "6.4"]
[White "Pedersen, Nicolai Kvist Brondt"]
[Black "Easwaralingam, Adesh"]
[Result "0-1"]
[ECO "E11"]
[WhiteElo "2325"]
[BlackElo "2123"]
[Annotator "ChessBase"]
[PlyCount "102"]
[EventDate "2019.05.29"]
[EventType "tourn"]
[EventCountry "DEN"]
[SourceTitle "playchess.com"]
[Source "ChessBase"]
[SourceQuality "1"]
[TimeControl "40/5400+30:1800+30"]

1. d4 {[%emt 0:00:00]} Nf6 {[%emt 0:00:00]} 2. Nf3 {[%emt 0:00:00]} e6 {[%emt 0:00:18]} 3. c4 {[%emt 0:00:00]} Bb4+ {[%emt 0:00:47]} 4. Nbd2 {[%emt 0:00:00]} b6 {[%emt 0:00:13]} 5. a3 {[%emt 0:00:38]} Bxd2+ {[%emt 0:00:17]} 6. Qxd2 {[%emt 0:00:33]} Ba6 {[%emt 0:01:10]} 7. e3 {[%emt 0:01:34]} d5 {[%emt 0:02:09]} 8. b3 {[%emt 0:02:25]} Nbd7 {[%emt 0:01:00]} 9. Bd3 {[%emt 0:06:22]} dxc4 {[%emt 0:01:31]} 10. bxc4 {[%emt 0:01:09]} Bb7 {[%emt 0:02:04]} 11. Qe2 {[%emt 0:10:24]} c5 {[%emt 0:07:24]} 12. O-O {[%emt 0:03:06]} O-O {[%emt 0:03:26]} 13. Bb2 {[%emt 0:03:35]} cxd4 {[%emt 0:04:39]} 14. exd4 {[%emt 0:02:58]} Re8 {[%emt 0:08:22]} 15. Rfd1 {[%emt 0:04:13]} Nf8 {[%emt 0:01:24]} 16. Ne5 {[%emt 0:06:22]} Ng6 {[%emt 0:00:36]} 17. Nxg6 {[%emt 0:10:28]} hxg6 {[%emt 0:01:14]} 18. a4 {[%emt 0:02:57]} Qc7 {[%emt 0:05:08]} 19. a5 {[%emt 0:01:57]} bxa5 {[%emt 0:06:57]} 20. Qe5 {[%emt 0:07:05]} Qc6 {[%emt 0:06:52]} 21. f3 {[%emt 0:01:22]} a4 {[%emt 0:01:04]} 22. Bc3 {[%emt 0:06:33]} Nd5 {[%emt 0:07:34]} 23. Bb2 {[%emt 0:05:57]} Nf6 {[%emt 0:02:20]} 24. Rdb1 {[%emt 0:03:30]} Nd7 {[%emt 0:14:08]} 25. Qa5 {[%emt 0:04:41]} e5 {[%emt 0:06:05]} 26. dxe5 {[%emt 0:03:13]} Qb6+ {[%emt 0:06:13]} 27. Qxb6 {[%emt 0:00:01]} axb6 {[%emt 0:00:05]} 28. f4 {[%emt 0:02:05]} Nc5 {[%emt 0:00:27]} 29. Bc2 {[%emt 0:00:50]} Red8 {[%emt 0:01:12]} 30. Bc3 {[%emt 0:02:25]} Be4 {[%emt 0:01:24]} 31. Bxe4 {[%emt 0:00:36]} Nxe4 {[%emt 0:00:03]} 32. Be1 {[%emt 0:00:18]} Ra6 {[%emt 0:04:59]} 33. Ra3 {[%emt 0:03:23]} Rd4 {[%emt 0:01:29]} 34. Rb4 {[%emt 0:01:20]} Nc5 {[%emt 0:00:04]} 35. Kf1 {[%emt 0:04:31]} Rxf4+ {[%emt 0:01:10]} 36. Ke2 {[%emt 0:00:01]} Re4+ {[%emt 0:00:35]} 37. Kd1 {[%emt 0:00:01]} Rxe5 {[%emt 0:02:28]} 38. Bf2 {[%emt 0:00:32]} Ra8 {[%emt 0:01:00]} 39. Bxc5 {[%emt 0:01:43]} bxc5 {[%emt 0:00:28]} 40. Rbxa4 {[%emt 0:00:31]} Rd8+ {[%emt 0:00:05]} 41. Kc2 {[%emt 0:06:04]} Re2+ {[%emt 0:01:56]} 42. Kc3 {[%emt 0:00:53]} Rxg2 {[%emt 0:04:08]} 43. Ra8 {[%emt 0:01:36]} Rf8 {[%emt 0:01:55]} 44. Ra2 {[%emt 0:05:50]} Rg5 {[%emt 0:01:02]} 45. Kd3 {[%emt 0:01:41]} Re5 {[%emt 0:00:33]} 46. R2a6 {[%emt 0:03:35]} g5 {[%emt 0:01:10]} 47. R8a7 {[%emt 0:02:03]} Rd8+ {[%emt 0:01:39]} 48. Kc2 {[%emt 0:00:31]} Re2+ {[%emt 0:00:30]} 49. Kb3 {[%emt 0:00:16]} Rd3+ {[%emt 0:02:47]} 50. Ka4 {[%emt 0:00:05]} Rb2 {[%emt 0:00:41]} 51. Ra5 {[%emt 0:01:41]} Rb4# {[%emt 0:00:07]} 0-1

[Event "Fredericia IM 2019"]
[Site "Fredericia"]
[Date "2019.06.01"]
[Round "6.5"]
[White "Devereaux, Maxim L"]
[Black "Olsen, Filip Boe"]
[Result "1/2-1/2"]
[ECO "B92"]
[WhiteElo "2342"]
[BlackElo "2394"]
[Annotator "ChessBase"]
[PlyCount "134"]
[EventDate "2019.05.29"]
[EventType "tourn"]
[EventCountry "DEN"]
[SourceTitle "playchess.com"]
[Source "ChessBase"]
[SourceQuality "1"]
[TimeControl "40/5400+30:1800+30"]

1. e4 {[%emt 0:00:00]} c5 {[%emt 0:00:00]} 2. Nf3 {[%emt 0:00:00]} d6 {[%emt 0:00:00]} 3. d4 {[%emt 0:00:25]} cxd4 {[%emt 0:00:02]} 4. Nxd4 {[%emt 0:01:27]} Nf6 {[%emt 0:00:14]} 5. Nc3 {[%emt 0:00:07]} a6 {[%emt 0:00:06]} 6. Be2 {[%emt 0:01:26]} e5 {[%emt 0:00:26]} 7. Nb3 {[%emt 0:00:06]} Be7 {[%emt 0:00:49]} 8. O-O {[%emt 0:02:37]} O-O {[%emt 0:00:52]} 9. Re1 {[%emt 0:06:10]} Be6 {[%emt 0:03:05]} 10. Bf3 {[%emt 0:00:37]} Nbd7 {[%emt 0:01:07]} 11. Nd2 {[%emt 0:02:28]} b5 {[%emt 0:03:58]} 12. a3 {[%emt 0:01:26]} Rc8 {[%emt 0:04:30]} 13. Nf1 {[%emt 0:02:06]} Nb6 {[%emt 0:01:43]} 14. Ne3 {[%emt 0:01:13]} g6 {[%emt 0:03:28]} 15. Re2 {[%emt 0:07:00]} Rc5 {[%emt 0:09:36]} 16. Bd2 {[%emt 0:05:56]} Qc8 {[%emt 0:13:12]} 17. Be1 {[%emt 0:02:43]} Rd8 {[%emt 0:05:24]} 18. Rd2 {[%emt 0:11:44]} Nc4 {[%emt 0:04:06]} 19. Nxc4 {[%emt 0:00:58]} Rxc4 {[%emt 0:00:50]} 20. Rd3 {[%emt 0:06:58]} h5 {[%emt 0:10:27]} 21. b3 {[%emt 0:22:35]} Rc5 {[%emt 0:01:27]} 22. a4 {[%emt 0:01:05]} Qb7 {[%emt 0:07:11]} 23. axb5 {[%emt 0:01:36]} axb5 {[%emt 0:00:02]} 24. Bd2 {[%emt 0:04:30]} Rdc8 {[%emt 0:01:49]} 25. Ra2 {[%emt 0:00:56]} Qc7 {[%emt 0:03:57]} 26. Qa1 {[%emt 0:00:38]} b4 {[%emt 0:03:01]} 27. Ra7 {[%emt 0:00:54]} Qd8 {[%emt 0:00:25]} 28. Nd1 {[%emt 0:00:05]} Rxc2 {[%emt 0:06:35]} 29. Bxb4 {[%emt 0:00:11]} Qb6 {[%emt 0:01:58]} 30. Qa3 {[%emt 0:07:32]} Rb8 {[%emt 0:01:43]} 31. Ra8 {[%emt 0:03:57]} Rcc8 {[%emt 0:03:32]} 32. Rxb8 {[%emt 0:00:20]} Rxb8 {[%emt 0:00:02]} 33. Bxd6 {[%emt 0:02:35]} Bxd6 {[%emt 0:01:04]} 34. Rxd6 {[%emt 0:00:29]} Qxb3 {[%emt 0:01:32]} 35. Qxb3 {[%emt 0:01:45]} Rxb3 {[%emt 0:00:16]} 36. h4 {[%emt 0:00:17]} Kg7 {[%emt 0:01:56]} 37. Kh2 {[%emt 0:01:59]} Bg4 {[%emt 0:01:21]} 38. Ne3 {[%emt 0:00:07]} Rb2 {[%emt 0:01:02]} 39. Kg3 {[%emt 0:01:51]} Be6 {[%emt 0:00:10]} 40. Ra6 {[%emt 0:00:28]} Rb4 {[%emt 0:00:24]} 41. Kh2 {[%emt 0:09:09]} Nxe4 {[%emt 0:02:15]} 42. Nc2 {[%emt 0:02:00]} Rc4 {[%emt 0:00:35]} 43. Ne3 {[%emt 0:00:20]} Rd4 {[%emt 0:00:13]} 44. Nc2 {[%emt 0:03:20]} Nc5 {[%emt 0:00:48]} 45. Nxd4 {[%emt 0:01:18]} Nxa6 {[%emt 0:00:07]} 46. Nxe6+ {[%emt 0:00:33]} fxe6 {[%emt 0:00:02]} 47. g4 {[%emt 0:00:34]} hxg4 {[%emt 0:00:35]} 48. Bxg4 {[%emt 0:00:05]} Nc5 {[%emt 0:00:11]} 49. Kg3 {[%emt 0:00:37]} Kf6 {[%emt 0:00:41]} 50. Kf3 {[%emt 0:00:53]} Nb7 {[%emt 0:01:34]} 51. Kg3 {[%emt 0:01:12]} Nd6 {[%emt 0:00:05]} 52. Bd1 {[%emt 0:00:20]} Nf5+ {[%emt 0:00:47]} 53. Kg4 {[%emt 0:00:34]} e4 {[%emt 0:00:32]} 54. Ba4 {[%emt 0:00:39]} e3 {[%emt 0:00:22]} 55. fxe3 {[%emt 0:00:11]} Nxe3+ {[%emt 0:00:01]} 56. Kf3 {[%emt 0:00:29]} Nf5 {[%emt 0:00:04]} 57. Kg4 {[%emt 0:00:08]} e5 {[%emt 0:00:23]} 58. Bc6 {[%emt 0:00:29]} Nd6 {[%emt 0:03:44]} 59. Ba8 {[%emt 0:00:27]} Nf7 {[%emt 0:00:43]} 60. Be4 {[%emt 0:02:31]} Nh6+ {[%emt 0:00:37]} 61. Kf3 {[%emt 0:00:50]} Kg7 {[%emt 0:01:07]} 62. Ba8 {[%emt 0:02:22]} Nf5 {[%emt 0:00:16]} 63. Kg4 {[%emt 0:00:11]} Kh6 {[%emt 0:00:03]} 64. h5 {[%emt 0:03:37]} Nd6 {[%emt 0:00:45]} 65. hxg6 {[%emt 0:00:08]} Kxg6 {[%emt 0:00:04]} 66. Bc6 {[%emt 0:00:12]} e4 {[%emt 0:00:03]} 67. Bxe4+ {[%emt 0:00:05]} Nxe4 {[%emt 0:00:03]} 1/2-1/2

[Event "Fredericia IM 2019"]
[Site "Fredericia"]
[Date "2019.06.01"]
[Round "7.1"]
[White "Ahlander, Bjorn"]
[Black "Vasli, Aref"]
[Result "1-0"]
[ECO "D42"]
[WhiteElo "2421"]
[BlackElo "2346"]
[Annotator "ChessBase"]
[PlyCount "77"]
[EventDate "2019.05.29"]
[EventType "tourn"]
[EventCountry "DEN"]
[SourceTitle "playchess.com"]
[Source "ChessBase"]
[SourceQuality "1"]
[TimeControl "40/5400+30:1800+30"]

1. d4 {[%emt 0:00:00]} Nf6 {[%emt 0:01:01]} 2. c4 {[%emt 0:00:00]} e6 {[%emt 0:00:05]} 3. Nc3 {[%emt 0:00:00]} c5 {[%emt 0:02:05]} 4. e3 {[%emt 0:00:10]} d5 {[%emt 0:00:42]} 5. Nf3 {[%emt 0:00:06]} Nc6 {[%emt 0:01:37]} 6. cxd5 {[%emt 0:00:07]} Nxd5 {[%emt 0:02:11]} 7. Bd3 {[%emt 0:00:39]} Nxc3 {[%emt 0:03:15]} 8. bxc3 {[%emt 0:00:03]} Be7 {[%emt 0:01:02]} 9. O-O {[%emt 0:04:44]} O-O {[%emt 0:00:06]} 10. Qe2 {[%emt 0:04:43]} b6 {[%emt 0:01:56]} 11. Rd1 {[%emt 0:00:30]} Qc7 {[%emt 0:00:53]} 12. Bb2 {[%emt 0:01:57]} Bb7 {[%emt 0:04:25]} 13. Rac1 {[%emt 0:00:54]} Rfd8 {[%emt 0:06:25]} 14. Bb1 {[%emt 0:02:07]} Rac8 {[%emt 0:04:05]} 15. h4 {[%emt 0:00:45]} g6 {[%emt 0:15:34]} 16. c4 {[%emt 0:11:43]} Na5 {[%emt 0:09:18]} 17. d5 {[%emt 0:20:43]} exd5 {[%emt 0:04:09]} 18. cxd5 {[%emt 0:01:34]} Rxd5 {[%emt 0:10:28]} 19. Rxd5 {[%emt 0:05:56]} Bxd5 {[%emt 0:00:07]} 20. Ng5 {[%emt 0:00:14]} h6 {[%emt 0:08:20]} 21. Nf3 {[%emt 0:12:37]} Qc6 {[%emt 0:06:03]} 22. e4 {[%emt 0:06:11]} Qe6 {[%emt 0:07:20]} 23. Ba1 {[%emt 0:05:10]} Bb7 {[%emt 0:02:04]} 24. Qe3 {[%emt 0:05:46]} Kh7 {[%emt 0:00:57]} 25. h5 {[%emt 0:00:33]} Bf6 {[%emt 0:01:16]} 26. Bxf6 {[%emt 0:04:27]} Qxf6 {[%emt 0:00:02]} 27. e5 {[%emt 0:00:21]} Qe7 {[%emt 0:01:29]} 28. Rd1 {[%emt 0:00:55]} Bxf3 {[%emt 0:01:29]} 29. Qxf3 {[%emt 0:00:25]} Rc6 {[%emt 0:04:07]} 30. Qg4 {[%emt 0:03:23]} Re6 {[%emt 0:01:07]} 31. f4 {[%emt 0:00:28]} Kg7 {[%emt 0:00:27]} 32. Bf5 {[%emt 0:01:58]} Nc4 {[%emt 0:01:12]} 33. Rd3 {[%emt 0:01:40]} Nxe5 {[%emt 0:00:39]} 34. fxe5 {[%emt 0:00:04]} Rxe5 {[%emt 0:00:16]} 35. hxg6 {[%emt 0:01:48]} h5 {[%emt 0:00:46]} 36. Qxh5 {[%emt 0:00:51]} Re1+ {[%emt 0:00:23]} 37. Kf2 {[%emt 0:00:49]} Ra1 {[%emt 0:00:37]} 38. Qh7+ {[%emt 0:00:31]} Kf6 {[%emt 0:00:01]} 39. Qh4+ {[%emt 0:00:23]} 1-0

[Event "Fredericia IM 2019"]
[Site "Fredericia"]
[Date "2019.06.01"]
[Round "7.3"]
[White "Olsen, Filip Boe"]
[Black "Fries-Nielsen, Niels Jorgen"]
[Result "1/2-1/2"]
[ECO "A55"]
[WhiteElo "2394"]
[BlackElo "2328"]
[Annotator "ChessBase"]
[PlyCount "119"]
[EventDate "2019.05.29"]
[EventType "tourn"]
[EventCountry "DEN"]
[SourceTitle "playchess.com"]
[Source "ChessBase"]
[SourceQuality "1"]
[TimeControl "40/5400+30:1800+30"]

1. d4 {[%emt 0:00:00]} d6 {[%emt 0:04:03]} 2. Nf3 {[%emt 0:00:33]} Nf6 {[%emt 0:01:45]} 3. c4 {[%emt 0:00:40]} Nbd7 {[%emt 0:03:30]} 4. Nc3 {[%emt 0:04:46]} e5 {[%emt 0:02:38]} 5. e4 {[%emt 0:02:50]} Be7 {[%emt 0:00:40]} 6. Be2 {[%emt 0:01:28]} O-O {[%emt 0:00:45]} 7. O-O {[%emt 0:00:10]} Re8 {[%emt 0:02:05]} 8. Qc2 {[%emt 0:05:38]} c6 {[%emt 0:06:54]} 9. h3 {[%emt 0:04:51]} Qc7 {[%emt 0:03:31]} 10. Be3 {[%emt 0:00:41]} Bf8 {[%emt 0:02:00]} 11. a3 {[%emt 0:03:04]} a6 {[%emt 0:05:26]} 12. Rfd1 {[%emt 0:03:22]} b6 {[%emt 0:08:34]} 13. Rac1 {[%emt 0:05:45]} Bb7 {[%emt 0:02:11]} 14. dxe5 {[%emt 0:13:20]} dxe5 {[%emt 0:06:01]} 15. Na4 {[%emt 0:04:09]} Rad8 {[%emt 0:12:37]} 16. Nd2 {[%emt 0:04:22]} Rb8 {[%emt 0:04:01]} 17. c5 {[%emt 0:05:26]} b5 {[%emt 0:03:03]} 18. Nb6 {[%emt 0:00:42]} Be7 {[%emt 0:02:02]} 19. b4 {[%emt 0:02:41]} Nf8 {[%emt 0:00:42]} 20. Nf3 {[%emt 0:03:56]} Rbd8 {[%emt 0:01:19]} 21. Bd2 {[%emt 0:03:14]} Ng6 {[%emt 0:02:53]} 22. a4 {[%emt 0:03:53]} Bc8 {[%emt 0:02:58]} 23. axb5 {[%emt 0:04:03]} axb5 {[%emt 0:01:40]} 24. Ra1 {[%emt 0:01:08]} Nd7 {[%emt 0:01:42]} 25. Be3 {[%emt 0:04:40]} Ndf8 {[%emt 0:00:23]} 26. Rdc1 {[%emt 0:02:41]} Ne6 {[%emt 0:01:05]} 27. Ra8 {[%emt 0:01:37]} Bb7 {[%emt 0:06:19]} 28. Rxd8 {[%emt 0:06:04]} Rxd8 {[%emt 0:00:12]} 29. Rd1 {[%emt 0:00:21]} Nef4 {[%emt 0:05:50]} 30. Bf1 {[%emt 0:00:37]} Ne6 {[%emt 0:00:53]} 31. g3 {[%emt 0:02:03]} Bf6 {[%emt 0:02:15]} 32. h4 {[%emt 0:01:02]} Nd4 {[%emt 0:02:10]} 33. Nxd4 {[%emt 0:00:46]} exd4 {[%emt 0:00:01]} 34. Bc1 {[%emt 0:00:11]} Bc8 {[%emt 0:00:11]} 35. Nxc8 {[%emt 0:01:24]} Qxc8 {[%emt 0:00:47]} 36. h5 {[%emt 0:02:13]} Ne5 {[%emt 0:01:14]} 37. f4 {[%emt 0:00:55]} d3 {[%emt 0:01:26]} 38. Qb3 {[%emt 0:02:28]} Nf3+ {[%emt 0:00:51]} 39. Kf2 {[%emt 0:01:06]} Qg4 {[%emt 0:00:34]} 40. Rxd3 {[%emt 0:00:38]} Bd4+ {[%emt 0:01:17]} 41. Be3 {[%emt 0:01:35]} Bxe3+ {[%emt 0:01:49]} 42. Kxe3 {[%emt 0:01:17]} Nd4 {[%emt 0:00:16]} 43. Kf2 {[%emt 0:02:00]} Ne6 {[%emt 0:06:45]} 44. Rxd8+ {[%emt 0:02:04]} Nxd8 {[%emt 0:00:01]} 45. Be2 {[%emt 0:03:02]} Qd7 {[%emt 0:01:24]} 46. Qd3 {[%emt 0:00:34]} Qxd3 {[%emt 0:00:26]} 47. Bxd3 {[%emt 0:00:01]} h6 {[%emt 0:00:11]} 48. f5 {[%emt 0:04:14]} f6 {[%emt 0:02:00]} 49. Bc2 {[%emt 0:00:23]} Kf8 {[%emt 0:00:11]} 50. Bb3 {[%emt 0:00:07]} Ke7 {[%emt 0:00:05]} 51. Ke3 {[%emt 0:00:11]} Nf7 {[%emt 0:02:12]} 52. Bxf7 {[%emt 0:03:11]} Kxf7 {[%emt 0:01:20]} 53. Kf4 {[%emt 0:00:12]} Ke7 {[%emt 0:00:26]} 54. e5 {[%emt 0:00:18]} Kf7 {[%emt 0:00:00]} 55. exf6 {[%emt 0:00:10]} gxf6 {[%emt 0:00:00]} 56. Ke4 {[%emt 0:00:08]} Kg7 {[%emt 0:00:08]} 57. Kf4 {[%emt 0:00:04]} Kh7 {[%emt 0:00:06]} 58. Ke4 {[%emt 0:00:03]} Kg7 {[%emt 0:00:04]} 59. Kf4 {[%emt 0:00:04]} Kh7 {[%emt 0:00:03]} 60. Ke4 {[%emt 0:00:04]} 1/2-1/2

[Event "Fredericia IM 2019"]
[Site "Fredericia"]
[Date "2019.06.01"]
[Round "7.4"]
[White "Easwaralingam, Adesh"]
[Black "Jacobsen, Mikkel Manosri"]
[Result "0-1"]
[ECO "B19"]
[WhiteElo "2123"]
[BlackElo "2319"]
[Annotator "ChessBase"]
[PlyCount "92"]
[EventDate "2019.05.29"]
[EventType "tourn"]
[EventCountry "DEN"]
[SourceTitle "playchess.com"]
[Source "ChessBase"]
[SourceQuality "1"]
[TimeControl "40/5400+30:1800+30"]

1. e4 {[%emt 0:00:00]} c6 {[%emt 0:00:00]} 2. d4 {[%emt 0:00:00]} d5 {[%emt 0:00:00]} 3. Nc3 {[%emt 0:00:00]} dxe4 {[%emt 0:00:00]} 4. Nxe4 {[%emt 0:00:04]} Bf5 {[%emt 0:00:00]} 5. Ng3 {[%emt 0:00:13]} Bg6 {[%emt 0:00:00]} 6. h4 {[%emt 0:00:07]} h6 {[%emt 0:00:00]} 7. Nf3 {[%emt 0:00:07]} Nd7 {[%emt 0:00:00]} 8. h5 {[%emt 0:00:09]} Bh7 {[%emt 0:00:01]} 9. Bd3 {[%emt 0:00:18]} Bxd3 {[%emt 0:00:05]} 10. Qxd3 {[%emt 0:00:10]} e6 {[%emt 0:00:04]} 11. Bd2 {[%emt 0:00:16]} Ngf6 {[%emt 0:00:05]} 12. O-O-O {[%emt 0:00:23]} Be7 {[%emt 0:00:04]} 13. Kb1 {[%emt 0:00:13]} O-O {[%emt 0:00:04]} 14. Ne4 {[%emt 0:00:10]} Nxe4 {[%emt 0:00:03]} 15. Qxe4 {[%emt 0:00:10]} Nf6 {[%emt 0:00:02]} 16. Qe2 {[%emt 0:00:40]} Qd5 {[%emt 0:00:04]} 17. Ne5 {[%emt 0:00:34]} Qe4 {[%emt 0:00:59]} 18. Qxe4 {[%emt 0:00:15]} Nxe4 {[%emt 0:00:06]} 19. Be1 {[%emt 0:00:53]} Rfd8 {[%emt 0:07:51]} 20. f3 {[%emt 0:03:52]} Nf6 {[%emt 0:00:05]} 21. Bf2 {[%emt 0:09:50]} Bd6 {[%emt 0:01:13]} 22. Nc4 {[%emt 0:03:41]} Bc7 {[%emt 0:00:13]} 23. Bh4 {[%emt 0:00:49]} Rd5 {[%emt 0:03:26]} 24. Bxf6 {[%emt 0:01:48]} gxf6 {[%emt 0:00:04]} 25. Ne3 {[%emt 0:00:23]} Rd7 {[%emt 0:00:38]} 26. c3 {[%emt 0:03:05]} Kg7 {[%emt 0:03:21]} 27. Kc2 {[%emt 0:00:17]} Rg8 {[%emt 0:00:25]} 28. Rh4 {[%emt 0:02:17]} f5 {[%emt 0:01:00]} 29. g4 {[%emt 0:00:40]} Bf4 {[%emt 0:01:37]} 30. Nc4 {[%emt 0:02:28]} Kf6 {[%emt 0:04:02]} 31. Rg1 {[%emt 0:04:27]} Rd5 {[%emt 0:03:56]} 32. Rf1 {[%emt 0:06:02]} b5 {[%emt 0:09:39]} 33. Na5 {[%emt 0:04:57]} c5 {[%emt 0:01:52]} 34. dxc5 {[%emt 0:06:11]} Rxc5 {[%emt 0:00:16]} 35. Nb3 {[%emt 0:02:15]} Rd5 {[%emt 0:01:50]} 36. Nd4 {[%emt 0:00:11]} b4 {[%emt 0:01:03]} 37. Rhh1 {[%emt 0:04:35]} bxc3 {[%emt 0:01:15]} 38. bxc3 {[%emt 0:00:10]} Rc8 {[%emt 0:00:47]} 39. Rd1 {[%emt 0:02:11]} Be5 {[%emt 0:04:03]} 40. Ne2 {[%emt 0:00:15]} Rxd1 {[%emt 0:01:36]} 41. Rxd1 {[%emt 0:30:22]} fxg4 {[%emt 0:30:07]} 42. fxg4 {[%emt 0:02:36]} Kg5 {[%emt 0:00:14]} 43. Rg1 {[%emt 0:00:47]} Rc4 {[%emt 0:00:19]} 44. Kd3 {[%emt 0:03:46]} Rxg4 {[%emt 0:00:12]} 45. Rb1 {[%emt 0:00:38]} Ra4 {[%emt 0:00:45]} 46. Ng1 {[%emt 0:00:27]} Kg4 {[%emt 0:00:50] Kd4} 0-1

[Event "Fredericia IM 2019"]
[Site "Fredericia"]
[Date "2019.06.01"]
[Round "7.5"]
[White "Antonsen, Mikkel"]
[Black "Devereaux, Maxim L"]
[Result "0-1"]
[ECO "D25"]
[WhiteElo "2423"]
[BlackElo "2342"]
[Annotator "ChessBase"]
[PlyCount "72"]
[EventDate "2019.05.29"]
[EventType "tourn"]
[EventCountry "DEN"]
[SourceTitle "playchess.com"]
[Source "ChessBase"]
[SourceQuality "1"]
[TimeControl "40/5400+30:1800+30"]

1. d4 {[%emt 0:00:00]} d5 {[%emt 0:00:00]} 2. c4 {[%emt 0:00:00]} dxc4 {[%emt 0:00:00]} 3. Nf3 {[%emt 0:00:00]} Nf6 {[%emt 0:00:07]} 4. e3 {[%emt 0:00:00]} b5 {[%emt 0:00:16]} 5. a4 {[%emt 0:00:44]} b4 {[%emt 0:00:07]} 6. Bxc4 {[%emt 0:00:06]} e6 {[%emt 0:00:05]} 7. O-O {[%emt 0:00:08]} Bb7 {[%emt 0:00:15]} 8. Nbd2 {[%emt 0:05:31]} Nbd7 {[%emt 0:00:16]} 9. Qe2 {[%emt 0:00:18]} Be7 {[%emt 0:05:53]} 10. e4 {[%emt 0:02:10]} O-O {[%emt 0:01:17]} 11. e5 {[%emt 0:00:03]} Nd5 {[%emt 0:00:07]} 12. Ne4 {[%emt 0:00:04]} h6 {[%emt 0:00:26]} 13. Bd3 {[%emt 0:07:43]} Re8 {[%emt 0:33:59]} 14. Bd2 {[%emt 0:01:27]} c5 {[%emt 0:07:50]} 15. dxc5 {[%emt 0:03:22]} Bxc5 {[%emt 0:00:37]} 16. Rac1 {[%emt 0:03:37]} Bf8 {[%emt 0:06:53]} 17. Bb5 {[%emt 0:08:47]} a6 {[%emt 0:01:11]} 18. Bc6 {[%emt 0:00:03]} Bxc6 {[%emt 0:00:42]} 19. Rxc6 {[%emt 0:00:04]} Nb8 {[%emt 0:00:33]} 20. Rc4 {[%emt 0:03:45]} Qd7 {[%emt 0:01:50]} 21. b3 {[%emt 0:18:01]} Nc6 {[%emt 0:03:39]} 22. Rb1 {[%emt 0:00:05]} Rec8 {[%emt 0:03:13]} 23. Qd3 {[%emt 0:03:11]} Be7 {[%emt 0:07:44]} 24. Ng3 {[%emt 0:05:13]} Kh8 {[%emt 0:11:27]} 25. Nh5 {[%emt 0:03:45]} Bf8 {[%emt 0:01:09]} 26. Rh4 {[%emt 0:02:20]} Nf6 {[%emt 0:03:25]} 27. Qxd7 {[%emt 0:02:46]} Nxd7 {[%emt 0:00:07]} 28. Re4 {[%emt 0:00:18]} Nc5 {[%emt 0:02:28]} 29. Re3 {[%emt 0:06:19]} Rd8 {[%emt 0:01:12]} 30. Kf1 {[%emt 0:00:51]} Rac8 {[%emt 0:02:45]} 31. Ke2 {[%emt 0:02:28]} Nd4+ {[%emt 0:00:37]} 32. Nxd4 {[%emt 0:00:14]} Rxd4 {[%emt 0:00:03]} 33. Ng3 {[%emt 0:01:40]} Rcd8 {[%emt 0:00:26]} 34. Be1 {[%emt 0:01:22]} a5 {[%emt 0:00:47]} 35. Rc1 {[%emt 0:03:50]} Nd3 {[%emt 0:00:42]} 36. Rc7 {[%emt 0:00:17]} Nf4+ {[%emt 0:00:12]} 0-1